Cogmind - Beta 15 @@@ ROGUE MODE // 2025.06.26 @ 15:47:14 Player: Skysub Result: Destroyed by 0K-NFF(R) with Subdweller Beam Cannon Performance ------------- Evolutions (0) 0 Regions Visited (2) 400 Robots Destroyed (28) 140 Value Destroyed (686) 686 Prototype IDs (11) 220 Alien Tech Used (0) 0 Bonus (0) 0 TOTAL SCORE: 1446 Bonus ------- None Cogmind --------- Core Integrity 0/250 Matter 233/300 Energy 98/100 System Corruption 0% Temperature Cool (9) Movement Rolling (110) Location -10/Subcaves Parts ------- > --- POWER (1) -------- (None) > --- PROPULSION (2) --- Subdweller Monowheel Subdweller Monowheel > --- UTILITY (2) ------ Large Storage Unit > --- WEAPON (2) ------- Subdweller Shrapnel Launcher Mining Claw > --- INVENTORY (15) --- Subdweller Power Source Spiked Treads Cargo Legs Subdweller Optics Subdweller Optics Scrap Shield Subdweller Beam Cannon Battle Rifle Subdweller Machine Gun Subdweller Machine Gun Plasma Cutter Peak State ------------ > --- POWER ------------ Light Ion Engine > --- PROPULSION ------- Light Treads Spiked Treads > --- UTILITY ---------- Large Storage Unit Structural Scanner > --- WEAPON ----------- Subdweller Machine Gun Subdweller Shrapnel Launcher > --- INVENTORY -------- Subdweller Power Source Aluminum Leg Subdweller Monowheel Subdweller Monowheel Subdweller Optics Subdweller Optics Targeting Computer Scrap Shield Subdweller Beam Cannon Light Assault Rifle Mining Laser Plasma Cutter Mining Claw [Rating: 12] Favorites ----------- Power Light Ion Engine Engine Light Ion Engine Propulsion Light Treads Treads Light Treads Wheel Subdweller Monowheel Utility Large Storage Unit Device Structural Scanner Storage Large Storage Unit Weapon Assault Rifle Ballistic Gun Assault Rifle Launcher Grenade Launcher Slashing Weapon Mining Claw Build | -11 -10 -10 ------- Run | Yrd Mat Sub Slots Evolved . | . . . Power . | . . . Propulsion . | . . . Utility . | . . . Weapon . | . . . Parts Attached 20 | 7 6 7 Power 3 | 1 2 . Engine 3 | 1 2 . Core . | . . . Reactor . | . . . Propulsion 6 | 3 . 3 Treads 3 | 2 . 1 Leg . | . . . Wheel 3 | 1 . 2 Hover . | . . . Flight . | . . . Utility 3 | 1 2 . Device 1 | . 1 . Storage 2 | 1 1 . Processor . | . . . Hackware . | . . . Protection . | . . . Artifact . | . . . Weapon 8 | 2 2 4 Energy Gun . | . . . Energy Cannon . | . . . Ballistic Gun 5 | 2 1 2 Ballistic Cannon . | . . . Launcher 2 | . 1 1 Special Weapon . | . . . Impact Weapon . | . . . Slashing Weapon 1 | . . 1 Piercing Weapon . | . . . Special Melee Weapon . | . . . Unidentified Prototypes . | . . . Parts Lost 9 | . 3 6 Power 3 | . 2 1 Propulsion 2 | . . 2 Utility 1 | . . 1 Weapon 3 | . 1 2 Highest Loss Streak 2 | . 1 2 To Critical Strikes . | . . . Average Backups 9 | 2 6 13 Power . | . . . Propulsion 3 | 1 2 3 Utility 1 | . . 2 Weapon 3 | . 2 4 Tool/Special . | . . . Unused Backups 13 | . . 13 Power 1 | . . 1 Propulsion 3 | . . 3 Utility 4 | . . 4 Weapon 4 | . . 4 Tool/Special 1 | . . 1 Average Slot Usage (%) 93 | . 92 94 Engine 13 | . 12 13 Treads 27 | . 28 27 Device 9 | . 10 9 Storage 14 | . 14 14 Ballistic Gun 13 | . 24 6 Launcher 9 | . 2 13 Slashing Weapon 4 | . . 8 Peak Build Rating 12 | 6 7 12 Average Rating 8 | 5 6 9 On Entrance 4 | . 6 7 Naked Turns . | . . . Heaviest Build 36 | 13 27 36 Greatest Support 40 | 20 40 40 Greatest Overweight (x) 4 | 4 . 1 Average Overweight (x) . | . . . Largest Inventory Capacity 15 | 8 15 15 Average Capacity 12 | 7 9 15 Most Carried 15 | 4 8 15 Average Carried 10 | 2 6 13 Final Capacity 15 | 8 15 15 Final Carried 13 | 4 8 13 Class Distribution -------------------- 100% | Mutant Dominant Class ---------------- Mutant | -10/Materials Mutant | -10/Subcaves Resources | -11 -10 -10 ----------- Run | Yrd Mat Sub Matter Collected 934 | 313 430 191 Remotely . | . . . Salvage Created 802 | 110 645 47 Parts 52 | 2 46 4 Haulers Intercepted . | . . . Recyclers Shooed . | . . . Parts Field Recycled . | . . . Retrieved Matter . | . . . Parts Self-Destructed 12 | . . 12 Prevented . | . . . Kills | -11 -10 -10 ------- Run | Yrd Mat Sub Combat Hostiles Destroyed 20 | . 17 3 Guns 13 | . 11 2 AOE 7 | . 6 1 Classes Destroyed 8 | 2 5 1 Worker 1 | . 1 . Builder 1 | . 1 . Tunneler 3 | 2 1 . Recycler 2 | 1 1 . Watcher 1 | . 1 . Swarmer 5 | . 5 . Grunt 12 | . 12 . Subdweller 3 | . . 3 Best Kill Streak 7 | 2 7 2 Combat Bots Only 7 | . 7 2 Max Kills in Single Turn 2 | 1 2 1 Gunslinging . | . . . Exploded 2 | . 2 1 Melee . | . . . Uniques/NPCs Destroyed . | . . . Combat | -11 -10 -10 -------- Run | Yrd Mat Sub Hostile Shots Fired 103 | . 70 33 Missed 33 | . 26 7 Hits 70 | . 44 26 Projectile 70 | . 44 26 Damage Taken 1232 | . 610 622 Core 258 | . 67 191 Absorbed by Shields . | . . . Core Remaining (%) 100 | 100 . . Volleys Fired 91 | 19 62 10 Largest 2 | 2 2 2 Hottest 70 | 40 50 70 Shots Fired 164 | 38 110 16 Gun 144 | 38 98 8 Cannon . | . . . Launcher 20 | . 12 8 Special . | . . . Kinetic 151 | 38 98 15 Thermal . | . . . Explosive 13 | . 12 1 Electromagnetic . | . . . Robot Hit Streak 9 | 5 9 7 Robot Miss Streak 3 | 1 3 1 Penetration Max . | . . . Secondary Targets 2 | . 2 . Max Gunslinging Chain 1 | . 1 . Shots Hit Robots 98 | 26 63 9 Core Hits 54 | 6 42 6 Critical Kills 1 | . 1 . Critical Parts Destroyed . | . . . Critical Strikes 2 | . 1 1 Destroy 2 | . 1 1 Melee Attacks 20 | . . 20 Impact . | . . . Slashing 20 | . . 20 Piercing . | . . . Sneak Attacks . | . . . Combat Hostiles . | . . . Follow-up Attacks . | . . . Damage Inflicted 2014 | 304 1220 490 Guns 1041 | 304 636 101 Cannons . | . . . Explosions 971 | . 582 389 Melee . | . . . Ramming 2 | . 2 . Kinetic 1389 | 304 636 449 Thermal . | . . . Explosive 623 | . 582 41 Electromagnetic . | . . . Impact . | . . . Slashing . | . . . Piercing . | . . . Highest Corruption . | . . . Average Corruption . | . . . Corruption Purged . | . . . Corruption Blocked . | . . . Overload Shots . | . . . Overflow Damage 42 | . 42 . Projectiles . | . . . Explosions 42 | . 42 . Melee . | . . . Knockbacks . | . . . Impact . | . . . Kinetic . | . . . Secondary . | . . . Self-Inflicted Damage 177 | . 132 45 Shots 4 | . 3 1 Rammed 2 | . 2 . Targets Rammed 2 | . 2 . Kicked . | . . . Crushed . | . . . Highest Temperature 9 | . 9 . Average Temperature 4 | . 4 . Received Heat Transfer 372 | . 246 126 Siege Activations . | . . . Martial Activations . | . . . Shielding Activations . | . . . Robots Disrupted . | . . . Combat Hostiles . | . . . Robots Corrupted . | . . . Combat Hostiles . | . . . Parts Fried . | . . . Impact Corruptions . | . . . Robots Melted . | . . . Combat Hostiles . | . . . Parts Melted . | . . . Heat Transferred . | . . . Parts Sabotaged . | . . . Parts Stolen . | . . . Parts Stripped . | . . . Power Chain Reactions . | . . . Alert | -11 -10 -10 ------- Run | Yrd Mat Sub Maximum Alert Level 1 | . 1 . Low Security (%) 61 | 100 54 . Level 1 38 | . 45 . Level 2 . | . . . Level 3 . | . . . Level 4 . | . . . Level 5 . | . . . High Security . | . . . Max Security . | . . . Peak Influence 288 | 5 288 . Initial . | . . . Average 145 | . 172 . Influence Increases 638 | 15 623 . Destroy 0b10 Robot/C 340 | . 340 . Destroy 0b10 Robot/NC 40 | 15 25 . Destroy Leader 72 | . 72 . Successful Hack 10 | . 10 . Select Force Hacks 30 | . 30 . Disable Machine 60 | . 60 . Destroy Structure 56 | . 56 . Lose Combat Pursuer 30 | . 30 . Influence Decreases 638 | 15 405 218 Entered New Map 106 | . . 106 Time Decay 502 | 15 375 112 Lost Part 30 | . 30 . Squads Dispatched 5 | . 5 . Investigation 3 | . 3 . Extermination . | . . . Reinforcement 2 | . 2 . Assault . | . . . Garrison . | . . . Intercept . | . . . Searches Triggered . | . . . Construction Impeded . | . . . Haulers Reinforced . | . . . Active Scanning Responses . | . . . Cargo Convoy Interrupts . | . . . Stealth | -11 -10 -10 --------- Run | Yrd Mat Sub Distress Signals 1 | . 1 . Communications Jammed . | . . . Distress Signals . | . . . Times Spotted 37 | . 29 8 Peak Tracking Total 5 | . 5 5 Tactical Retreats 2 | . 2 . Traps | -11 -10 -10 ------- Run | Yrd Mat Sub Traps Triggered 2 | . 2 . Indirectly . | . . . Trap Hack Attempts . | . . . Triggered . | . . . Disarmed . | . . . Reprogrammed . | . . . Reused . | . . . Traps Extracted . | . . . Installed . | . . . Triggered . | . . . Machines | -11 -10 -10 ---------- Run | Yrd Mat Sub Machines Disabled 5 | . 4 1 Max in Single Turn 2 | . 2 1 Machines Repaired . | . . . Machines Dismantled . | . . . Machines Sabotaged . | . . . Overloaded Fab Kills . | . . . Hacking | -11 -10 -10 --------- Run | Yrd Mat Sub Machines Accessed 7 | . 4 3 Terminals 2 | . 2 . Fabricators . | . . . Repair Stations . | . . . Recycling Units 2 | . 2 . Scanalyzers . | . . . Garrison Access . | . . . Total Hacks 18 | . 11 7 Successful 14 | . 7 7 Failed 4 | . 4 . Catastrophic 1 | . 1 . Database Lockouts . | . . . Manual 2 | . 2 . Terminals 6 | . 6 . Fabricators . | . . . Repair Stations . | . . . Recycling Units 5 | . 5 . Scanalyzers . | . . . Garrison Access . | . . . Terminal Hacks 10 | . 3 7 Record 5 | . . 5 Robot Analysis 1 | . 1 . Open Door 1 | . . 1 Zone Layout 2 | . 2 . Proto ID Catalog 1 | . . 1 Fabricator Hacks . | . . . Repair Station Hacks . | . . . Recycling Unit Hacks 2 | . 2 . Report Inventory 2 | . 2 . Scanalyzer . | . . . Garrison Access Hacks . | . . . Unauthorized Hacks 2 | . 2 . Terminals 1 | . 1 . Botnet 1 | . 1 . Fabricators . | . . . Repair Stations . | . . . Recycling Units 1 | . 1 . Tunnel 1 | . 1 . Scanalyzers . | . . . Garrison Access . | . . . Data Cores Recovered . | . . . Used . | . . . Hacking Detections 3 | . 3 . Full Trace Events 1 | . 1 . Feedback Events . | . . . Feedback Blocked . | . . . Robot Schematics Acquired . | . . . Robots Built . | . . . Authchips . | . . . Time . | . . . Total Robot Build Rating . | . . . Part Schematics Acquired . | . . . Parts Built . | . . . Authchips . | . . . Time . | . . . Total Part Build Rating . | . . . Parts Repaired . | . . . Time . | . . . Parts Recycled . | . . . Recycled Matter . | . . . Retrieved Matter . | . . . Retrieved Components . | . . . Parts Scanalyzed . | . . . Part Schematics Acquired . | . . . Parts Damaged . | . . . Bothacking | -11 -10 -10 ------------ Run | Yrd Mat Sub Used RIF Installer . | . . . Robots Hacked . | . . . Non-combat . | . . . Combat . | . . . Robot Hacks Applied . | . . . Relay Couplers Released . | . . . Fabnet Peak Effective % . | . . . Robots Rewired . | . . . Allies Hacked . | . . . Hacks Repelled . | . . . Allies | -11 -10 -10 -------- Run | Yrd Mat Sub Total Allies . | . . . Largest Group . | . . . Highest-Rated Group . | . . . Highest-Rated Ally . | . . . Total Orders . | . . . Ally Attacks . | . . . Total Damage . | . . . Kills . | . . . Allies Corrupted . | . . . Allies Melted . | . . . Intel | -11 -10 -10 ------- Run | Yrd Mat Sub Active Infowar (turns) 1586 | . 655 931 Structural 1586 | . 655 931 Robot Analysis Total 1 | . 1 . Derelict Logs Recovered 2 | . . 2 Drone Launches . | . . . Drone Recoveries . | . . . Exploration | -11 -10 -10 ------------- Run | Yrd Mat Sub Turns Passed 2477 | 166 894 1417 Spaces Moved 1284 | 60 407 817 Core 9 | 9 . . Treads 1249 | 51 407 791 Legs . | . . . Wheels 26 | . . 26 Hover . | . . . Flight . | . . . Fastest Speed 50 | 50 160 110 Average Speed 159 | 166 160 158 Slowest Speed 250 | 250 160 240 Overloaded Moves . | . . . Propulsion Burnouts . | . . . Robots Hopped . | . . . Potential Cave-ins . | . . . Cave-ins Triggered . | . . . Exploration Rate (%) 40 | 5 61 55 Regions Visited 2 Branch Regions 1 Pre-discovered Areas 3 | . 1 2 Known Exits Taken . | . . . Unknown Exits Taken 2 | 1 1 . Scrap Searched 4 | . . 4 Spaces Dug 3 | . . 3 Terrain Destroyed 155 | . 65 90 Melee 3 | . . 3 Projectile . | . . . AOE 152 | . 65 87 Terrain Rammed . | . . . Walls Destroyed . | . . . Machines Disabled . | . . . Actions | -11 -10 -10 --------- Run | Yrd Mat Sub Total 1513 | 89 544 880 Wait 60 | . 60 . Move 1282 | 59 406 817 Hop . | . . . Pick Up 22 | 3 5 14 Fast Attach 11 | 7 4 . Attach 5 | . 1 4 Detach 1 | 1 . . Swap 11 | . 3 8 Drop 8 | . 1 7 Fire 91 | 19 62 10 Melee 20 | . . 20 Ram . | . . . Kick . | . . . Crush 2 | . 2 . Escape Stasis . | . . . Rewire . | . . . Trap . | . . . Miscellaneous . | . . . Route ------- -11/Scrapyard -10/Materials (discovered 4 exits: [*Mat x2] / [*Min] / *Sub) -10/Subcaves (discovered 3 exits: [*Mat x2] / [Rec]) History --------- Turn | Location | Event 42 | -11/Scrapyard | Discovered new exit (range 15) 167 | -11/Scrapyard | Entered Materials 300 | -10/Materials | Build established: Mutant 356 | -10/Materials | Discovered new exit (range 8) 559 | -10/Materials | Discovered new exit (range 8) 698 | -10/Materials | Destroyed 7 combat bots 765 | -10/Materials | Discovered new exit (range 15) 1014 | -10/Materials | Discovered new exit (range 3) 1061 | -10/Materials | Entered Subcaves 1062 | -10/Subcaves | Approached by a straggling Scientist 1071 | -10/Subcaves | Shifting Twisted Machinery released Sub. Power Source 1072 | -10/Subcaves | Shifting Twisted Machinery released Sub. Monowheel 1143 | -10/Subcaves | Visited Clippyterm 1148 | -10/Subcaves | Learned location of Deep Caves (-6) 1148 | -10/Subcaves | Learned Research security intel 1412 | -10/Subcaves | Discovered new exit (range 6) 1467 | -10/Subcaves | A swath of the cavern ceiling suddenly collapsed 1716 | -10/Subcaves | Shifting Twisted Machinery released Spk. Treads 1723 | -10/Subcaves | Shifting Twisted Machinery released Riot Gun 1795 | -10/Subcaves | A swath of the cavern ceiling suddenly collapsed 1927 | -10/Subcaves | Shifting Twisted Machinery released Scrap Shield 1932 | -10/Subcaves | Shifting Twisted Machinery released Sub. Shrapnel Launcher 2006 | -10/Subcaves | Core integrity fell below 50% 2061 | -10/Subcaves | Learned 2 Materials zone layouts 2159 | -10/Subcaves | Discovered new exit (range 16) 2228 | -10/Subcaves | Discovered new exit (range 13) 2304 | -10/Subcaves | Visited 4L-MR0's lab 2326 | -10/Subcaves | Found Cargo Legs 2449 | -10/Subcaves | Core integrity fell below 20% 2478 | -10/Subcaves | Destroyed by 0K-NFF(R) with Subdweller Beam Cannon Last Messages --------------- 02328_ 4L-MR0 mumbles: "Who knows where that last prototype ended up, probably tossed aside somewhere as if it were useless junk..." 02349_ Searching scrap... 02349_ Found Sub. Optics. 02349_ Found Sub. Machine Gun. 02349_ Found 67 Matter. 02350_ Acquired 67 matter. 02351_ Searching scrap... 02351_ Found Sub. Machine Gun. 02351_ Found 68 Matter. 02352_ Acquired 68 matter. 02354_ Dropped Lgt. Assault Rifle. 02354_ Acquired Sub. Machine Gun. 02356_ Subatomizers dissect the Sub. Optics. 02356_ Dropped Sub. Machine Gun. 02356_ Acquired Sub. Machine Gun. 02357_ Dropped Mining Laser. 02445_ Lgt. Treads destroyed. 02446_ Sub. Shrapnel Launcher shoots sparks and powers down. 02455_ Lgt. Ion Engine destroyed. Map ----- +----------------------------------------------------+ | | | | | ?????????????????????????????????????????????????? | | ?????????????????????????????????????????????????? | | ?????????????????????????????????????????????????? | | ?????????????#############???????????????????????? | | ?????????????#" """"""#"!#???????????????????????? | | ?????????????#" "X" = #????????????########???? | | ???????????##### ###????????????#""""""#???? | | ???????????# + #??????????????#""""X"#???? | | ???????????#" ##########??????????????# "#???? | | ???????????#"!####????###$#???????????# "#???? | | ???????????#"[ "##### "#???????????#" """"#???? | | ???????????#"|[ # #????????????## #####???? | | ???????????##" ##???????????????#" ""#?????? | | ????????????##" "## <#????##########?#X ##????? | | ?????????#########" <###??# #### ##???? | | ???????### ### < #### ##### ## #### ##### | | ???????# ## #????# ## ## ## # | | ???????# # # #????# ## ### | | ???????########## # # #????# ## | | ????????????????# ## # ###??# ## | | ?????????????#### ### #### ### | | ?????????????# ## ## # < | | ?????????????# # ##### | | ?????????????# <@ #???### | | ?????????????# # #?????# | | ?????????????## ### ## ##### #?????# | | ??????????????### #?####### #???## #?????## | | ????????????????### #???????###????###??????? | | ??????????????????# ##??????????????????????? | | ??????????????????# ##?????????????????????? | | ??????????????????# #?????????????????????? | | ??????????????#???# #?????????????????????? | | ?????????????## ??## ##?????????????????????? | | ????????????## #??# R #??????????????????????? | | ???????????## ### ## #??????????????????????? | | ???????????# R#?##??????????????????????? | | ???????????# #?????????????????????????? | | ???????????### ## #?##??????????????????????? | | ?????????? # ## #??????????????????????? | | ?????? # #??????????????????????? | | ??????? # # #??????????????????????? | | ???????? ??### ### ####?##?????????????????? | | ???????? ??????# ??# " # # #???????????????? | | ??????????????## ?### " #???????????????? | | ??????????????# # # #" #???????????????? | | ??????????????# " #???????????????? | | ??????????????## #????????????? | | ???????????????# ## "" #???????????? | +----------------------------------------------------+ Best States ------------- Heat Dissipation 25 Energy Generation 10 Energy Capacity 250 Matter Stores 300 Matter Capacity 300 Sight Range 16 Terrain Scan Density 10 Evasion (%) 40 Recoil Reduction 2 Item Schematics ----------------- None Robot Schematics ------------------ None Fabricated ------------ Nothing Repaired ---------- Nothing Alien Tech Used ----------------- None Achievements -------------- None Challenges ------------ None Game ------ Seed AdvancedWeaponMaul Manual? 0 Play Time 00:13:57 Cumulative 129.6 hours Start 2025.06.25 @ 19:41:58 End 2025.06.26 @ 15:47:14 Sessions 2 Manual Loads 0 Difficulty Rogue Special Mode None Game No. 141 Rogue 141 Adventurer 0 Explorer 0 Win Type - Total 2 Types 1/0/0/1/0/0/0/0/0/0 Lore% 61 Gallery% 57 Achievement% 51 Wizard Run 0 Options --------- Layout 1 ASCII 0 Keyboard 1 Movement Numpad Keybinds 0 Fullscreen 1 Font 32/SmallcapsGlow Map View 77x35 Zoom Use 0% Tactical HUD 1 Map Filters NONE Filters NONE Steam 1 RUN: 0ad60129-72be-4c63-97b3-ec52269bbf65